bitfinex/quotes_ETHUSD_20250425
["timestamp","ask_amount","ask_price","bid_price","bid_amount"]
[1745583549106,3.8524,1795.0,1794.6,5.342]
[1745583549653,0.8524,1794.9,1794.5,5.7603277]
[1745583549852,1.74781296,1794.9,1794.5,0.4183277]
[1745583550023,0.8524,1794.8,1794.5,0.4183277]
[1745583550364,4.79931404,1794.8,1794.5,0.4183277]
[1745583550538,5.22774436,1794.7,1794.5,0.4183277]
[1745583551259,3.94691404,1794.8,1794.5,0.4183277]
[1745583551410,3.94691404,1794.8,1794.6,5.57225384]
[1745583551616,3.94691404,1794.8,1794.7,5.342]
[1745583552343,0.499998,1795.1,1794.7,10.91375095]
[1745583552746,0.499998,1795.1,1794.7,5.342]
[1745583552954,0.499998,1795.1,1794.8,0.5342]
[1745583553458,0.499998,1795.1,1794.8,6.10569033]
[1745583553617,0.499998,1795.1,1794.8,7.31213618]
[1745583554668,0.499998,1795.1,1794.9,5.343]
[1745583555020,0.499998,1795.1,1795.0,5.57103064]
[1745583555214,0.499998,1795.1,1795.0,1.09140306]
[1745583556020,0.499998,1795.1,1794.9,10.91432971]
[1745583556221,0.499998,1795.1,1794.9,10.91413266]
[1745583556416,0.499998,1795.1,1795.0,5.57103064]
[1745583556681,3.94691404,1796.1,1795.1,1.2962]
[1745583556824,0.8524,1796.3,1795.7,1.2962]
[1745583557025,0.8524,1796.6,1796.0,5.56765721]
[1745583557235,0.8524,1796.6,1796.0,6.12442293]
[1745583557437,0.8524,1796.6,1796.0,6.12458286]
[1745583557966,0.8524,1796.6,1795.8,5.343]
[1745583558127,0.8524,1796.6,1795.9,5.56820274]
[1745583558633,0.8524,1796.6,1795.9,5.56801433]
[1745583558952,0.8524,1796.6,1796.0,5.5677409]
[1745583559254,0.8524,1796.6,1796.1,5.56760848]
[1745583559421,0.8524,1796.6,1796.2,5.342]
[1745583560489,3.0,1796.5,1795.7,1.2962]
[1745583560690,5.57670264,1796.4,1795.8,5.342]
[1745583560859,5.57670264,1796.4,1795.9,5.342]
[1745583561794,3.0,1796.3,1795.9,5.342]
[1745583562095,4.42430264,1796.2,1795.9,5.341]
[1745583562411,9.22361668,1796.2,1795.7,5.341]
[1745583562593,0.44243026,1796.1,1795.7,5.341]
[1745583562999,3.44243026,1796.1,1795.7,5.341]
[1745583564164,0.8524,1796.0,1795.6,5.341]
[1745583564364,1.28188303,1796.0,1795.6,5.341]
[1745583565910,0.8524,1796.0,1795.7,5.56870679]
[1745583566076,0.8524,1796.0,1795.6,10.9099888]
[1745583566267,3.94691404,1796.2,1795.8,5.56844958]
[1745583566691,3.94691404,1796.2,1795.7,6.82241674]
[1745583566897,3.94691404,1796.2,1795.7,1.2536]
[1745583567072,3.94691404,1796.2,1795.7,2.46996611]
[1745583567296,3.94691404,1796.2,1795.8,5.5684827]
[1745583567701,3.94691404,1796.2,1795.8,11.13681677]
[1745583567902,3.94691404,1796.2,1795.9,5.56801148]
[1745583568101,3.94691404,1796.2,1796.0,5.34]
[1745583568624,9.76430264,1796.9,1796.0,5.34]
[1745583568625,0.8508,1796.5,1796.1,5.56742249]
[1745583568833,0.8508,1796.5,1796.0,6.43080115]
[1745583569018,0.8508,1796.5,1796.0,11.99865944]
[1745583569200,0.8508,1796.5,1796.1,5.56751258]
[1745583570131,4.79771404,1796.8,1796.2,1.2182]
[1745583570341,0.8508,1796.8,1796.3,5.56681405]
[1745583570494,0.8508,1796.8,1796.4,5.34]
[1745583571127,3.8508,1796.7,1795.9,1.2182]
[1745583571331,0.38508,1796.6,1795.9,0.67865649]
[1745583571532,7.79771404,1796.5,1795.7,1.2014]
[1745583571712,0.8508,1796.3,1795.7,5.34]
[1745583572061,0.8508,1796.1,1795.5,5.75365484]
[1745583572193,7.79771404,1796.1,1795.5,5.34]
[1745583572392,0.7797714,1796.0,1795.5,5.34]
[1745583572597,0.8508,1795.8,1795.5,5.34]
[1745583573326,0.8508,1795.8,1795.4,5.34]
[1745583573327,3.0,1795.7,1795.4,5.34]
[1745583573526,6.94691404,1795.7,1795.1,16.707]
[1745583573729,6.94691404,1795.7,1795.2,10.91027945]
[1745583574036,6.94691404,1795.7,1795.2,8.10172795]
[1745583574536,3.94691404,1795.7,1795.2,13.67196303]
[1745583574699,3.94691404,1795.7,1795.3,5.5700702]
[1745583575251,3.94691404,1795.7,1795.3,5.56996686]
[1745583576258,3.94691404,1795.7,1795.2,13.67193347]
[1745583576457,3.94691404,1795.7,1795.3,6.93718077]
[1745583576760,3.94691404,1795.7,1795.3,1.36719335]
[1745583577455,3.94691404,1795.7,1795.2,8.10172795]
[1745583577456,3.94691404,1795.7,1795.2,5.34]
[1745583578051,3.94691404,1795.7,1795.2,10.91022498]
[1745583578351,3.94691404,1795.7,1795.3,5.57008279]
[1745583578553,3.94691404,1795.7,1795.4,5.56949904]
[1745583579047,3.94691404,1795.7,1795.3,5.56988893]
[1745583579228,3.94691404,1795.7,1795.4,0.55698889]
[1745583579733,3.94691404,1795.7,1795.3,11.13988469]
[1745583579734,3.94691404,1795.7,1795.1,16.707]
[1745583579938,3.94691404,1795.7,1795.1,27.57962182]
[1745583580352,3.94691404,1795.7,1795.2,5.57029577]
[1745583580550,3.94691404,1795.7,1795.3,5.57007757]
[1745583580871,3.94691404,1795.7,1795.3,5.57007971]
[1745583581067,3.94691404,1795.7,1795.4,0.55700797]
[1745583582356,3.94691404,1795.7,1795.5,5.56936224]
[1745583582560,3.94691404,1795.7,1795.5,5.303]
[1745583582772,3.94691404,1795.7,1795.6,5.56916907]
[1745583583299,0.8508,1796.0,1795.7,5.5688493]
[1745583583479,0.8508,1796.0,1795.5,10.87239157]
[1745583583805,0.8508,1796.0,1795.6,1.08723916]
[1745583584107,0.8508,1796.0,1795.5,5.303]
[1745583584399,0.8508,1796.0,1795.5,10.87241321]
[1745583585503,0.8508,1796.0,1795.5,5.303]
[1745583586290,0.8508,1795.9,1795.1,17.9753]
[1745583586481,3.0,1795.7,1795.1,22.009]
[1745583586811,0.8508,1795.6,1795.1,22.009]
[1745583586969,3.0,1795.5,1795.1,22.009]
[1745583587170,5.27510264,1795.4,1794.8,5.8362]
[1745583587366,3.94691404,1795.3,1794.8,5.8362]
[1745583587908,3.94691404,1795.3,1794.9,0.58362]
[1745583590205,0.8508,1795.4,1795.0,5.57091093]
[1745583590406,0.8508,1795.4,1795.1,5.57070962]
[1745583590643,0.8508,1795.4,1795.0,5.57091093]
[1745583590849,0.8508,1795.4,1795.0,11.14169813]
[1745583591007,0.8508,1795.4,1795.1,1.11416981]
[1745583591205,0.8508,1795.6,1795.1,6.68460105]
[1745583591519,0.8508,1795.6,1795.2,5.303]
[1745583594040,8.27510264,1795.6,1794.9,5.88662]
[1745583594248,3.8508,1795.6,1795.0,5.57080293]
[1745583594548,3.8508,1795.6,1795.1,0.55708029]
[1745583594707,3.8508,1795.6,1795.0,5.57099592]
[1745583595110,3.8508,1795.6,1795.0,5.57081082]
[1745583595304,3.8508,1795.6,1795.0,5.5708055]
[1745583595746,3.8508,1795.6,1794.9,12.67189945]
[1745583595918,3.8508,1795.6,1794.9,12.67187591]
[1745583596113,3.8508,1795.6,1795.0,6.83821009]
[1745583596943,0.8508,1795.5,1795.0,1.26718759]
[1745583597122,0.8508,1795.5,1794.9,11.45796004]
[1745583597571,0.8508,1795.5,1794.9,5.88662]
[1745583598504,5.28080264,1795.1,1794.5,0.4183277]
[1745583598861,5.28080264,1795.1,1794.5,5.99089495]
[1745583599060,5.28080264,1795.1,1794.5,0.4183277]
[1745583599485,5.28080264,1795.1,1794.5,5.99087509]
[1745583600295,0.8565,1795.1,1794.5,5.99087509]
[1745583600499,0.8565,1795.1,1794.6,0.59908751]
[1745583600708,0.8565,1795.1,1794.6,6.17123049]
[1745583600874,0.8565,1795.1,1794.6,6.17114533]
[1745583601086,0.8565,1795.1,1794.7,5.57187097]
[1745583601294,0.8565,1795.1,1794.7,5.57177736]
[1745583601598,0.8565,1795.1,1794.8,0.55717774]
[1745583602490,0.8565,1795.1,1794.5,5.99073524]
[1745583602689,0.8565,1795.1,1794.6,5.304]
[1745583603090,0.8565,1795.1,1794.5,5.99071971]
[1745583603295,0.8565,1795.1,1794.6,10.87617132]
[1745583603493,0.8565,1795.1,1794.6,5.304]
[1745583603822,0.8565,1795.1,1794.6,6.43346192]
[1745583603990,0.8565,1795.1,1794.6,12.00562026]
[1745583604194,0.8565,1795.1,1794.6,12.00557776]
[1745583604505,0.8565,1795.1,1794.6,12.00556703]
[1745583604710,0.8565,1795.1,1794.7,5.57194902]
[1745583604892,0.8565,1795.1,1794.8,0.5571949]
[1745583605093,0.8565,1795.1,1794.7,5.5719391]
[1745583605293,0.8565,1795.1,1794.6,17.57760563]
[1745583605590,0.8565,1795.1,1794.6,12.00551986]
[1745583605799,0.8565,1795.1,1794.7,5.57192543]
[1745583605999,0.8565,1795.1,1794.6,12.00551363]
[1745583606213,0.8565,1795.1,1794.7,1.20055136]
[1745583606419,0.8565,1795.1,1794.7,6.77249402]
[1745583606618,0.8565,1795.1,1794.7,1.20055136]
[1745583607906,0.8565,1795.1,1794.6,10.87624338]
[1745583608326,0.8565,1795.1,1794.6,10.87607865]
[1745583608825,0.8565,1795.1,1794.6,5.304]
[1745583608994,0.8565,1795.1,1794.6,10.8762697]
[1745583610315,0.8565,1795.1,1794.7,5.57172198]
[1745583610518,0.8565,1795.1,1794.8,0.5571722]
[1745583610833,0.8565,1795.1,1794.8,6.12866211]
[1745583611004,0.8565,1795.1,1794.8,0.5571722]
[1745583611206,0.8565,1795.1,1794.7,11.1436686]
[1745583611207,6.46800026,1794.9,1794.5,0.4183277]
[1745583611408,1.75301142,1794.6,1794.5,0.4183277]
[1745583612801,4.75301142,1794.6,1794.5,0.4183277]
[1745583613043,1.75301142,1794.6,1794.5,0.4183277]
[1745583613406,0.8565,1794.6,1794.5,0.4183277]
[1745583613603,1.38511578,1794.6,1794.5,0.4183277]
[1745583613797,1.27262794,1794.6,1794.5,0.4183277]
[1745583614428,4.27262794,1794.6,1794.5,0.4183277]
[1745583615299,4.27262794,1794.6,1793.6,6.76274555]
[1745583615300,3.0,1794.3,1793.6,1.1876]
[1745583615641,4.42965779,1794.1,1793.4,6.3606]
[1745583616268,4.42965779,1794.1,1793.4,11.93646804]
[1745583616566,0.52861578,1794.1,1793.4,8.11186275]
[1745583616726,0.52861578,1794.1,1793.4,13.68759588]
[1745583617185,3.8565,1794.2,1793.4,12.54152054]
[1745583617186,0.8565,1794.2,1793.4,12.54152054]
[1745583617475,0.8565,1794.2,1793.7,5.57488476]
[1745583617626,0.8565,1794.2,1793.4,8.11186275]
[1745583617831,0.8565,1794.2,1793.5,5.173]
[1745583618226,0.8565,1794.2,1793.6,5.57528464]
[1745583618426,0.8565,1794.2,1793.5,5.173]
[1745583618827,0.8565,1794.2,1793.1,18.0217]
[1745583619028,0.8565,1794.0,1793.4,5.174]
[1745583619252,1.3368414,1794.0,1793.4,6.24900373]
[1745583620104,1.74855067,1794.0,1793.4,5.174]
[1745583620259,0.8565,1793.9,1793.4,5.174]
[1745583622860,0.8565,1793.9,1793.4,10.74985355]
[1745583624082,0.8565,1793.9,1793.4,10.74983084]
[1745583624783,0.8565,1793.9,1793.4,5.174]
[1745583624987,0.8565,1793.9,1793.5,5.57567611]
[1745583625301,0.8565,1793.9,1793.4,11.26719125]
[1745583625669,0.8565,1793.9,1793.4,15.69684904]
[1745583625878,3.94691404,1794.0,1793.7,5.57488428]
[1745583626067,3.94691404,1794.0,1793.6,10.00491237]
[1745583626403,3.94691404,1794.0,1793.6,7.26187759]
[1745583626701,3.94691404,1794.0,1793.7,5.57504829]
[1745583627002,3.94691404,1794.0,1793.5,12.43763469]
[1745583627198,3.94691404,1794.0,1793.7,5.57492823]
[1745583627499,3.94691404,1794.0,1793.8,5.57463616]
[1745583628012,3.94691404,1794.0,1793.7,5.57492568]
[1745583628195,3.94691404,1794.0,1793.7,5.57490813]
[1745583628509,3.94691404,1794.0,1793.8,5.57462588]
[1745583628827,3.94691404,1794.0,1793.7,7.13288803]
[1745583629106,3.94691404,1794.0,1793.7,5.57503339]
[1745583629892,3.94691404,1794.0,1793.6,10.0048206]
[1745583630089,0.8565,1794.1,1793.6,9.954817]
[1745583630528,0.8565,1794.1,1793.5,6.86227646]
[1745583630727,0.8565,1794.1,1793.5,6.86212547]
[1745583631025,0.8565,1794.1,1793.5,6.86208135]
[1745583631178,0.8565,1794.1,1793.5,8.67501674]
[1745583631377,0.8565,1794.1,1793.6,5.175]
[1745583631582,0.19444796,1794.0,1793.6,5.175]
[1745583632501,0.19444796,1794.0,1793.6,10.75036007]
[1745583632695,0.19444796,1794.0,1793.5,5.57553555]
[1745583632997,0.15530384,1793.9,1793.4,10.52293538]
[1745583633415,0.8565,1794.1,1793.4,10.52284691]
[1745583633715,0.15471959,1793.8,1793.4,6.09318912]
[1745583633922,0.8565,1794.1,1793.4,0.5174]
[1745583634104,0.8565,1794.1,1793.3,10.75113405]
[1745583634308,0.15525871,1794.0,1793.4,5.57585409]
[1745583634514,0.15525871,1794.0,1793.5,5.5756699]
[1745583634821,0.15525871,1794.0,1793.6,5.57536627]
[1745583635017,0.15525871,1794.0,1793.6,5.57515808]
[1745583635263,0.8565,1794.1,1793.6,6.69022827]
[1745583636666,0.154105,1793.6,1793.3,5.57630073]
[1745583636865,0.8537,1793.7,1793.3,5.57630073]
[1745583637225,0.8537,1793.7,1793.2,11.64868792]
[1745583637457,0.8537,1793.7,1793.2,12.81353774]
[1745583637723,0.8537,1793.7,1793.2,11.91627335]
[1745583637960,0.15316088,1793.6,1793.2,12.81353774]
[1745583638169,0.8537,1793.7,1793.3,5.57631022]
[1745583638580,0.8537,1793.7,1793.3,11.15240578]
[1745583638872,0.8537,1793.7,1793.4,5.5759953]
[1745583639070,0.8537,1793.7,1793.3,7.41509016]
[1745583639990,0.8537,1794.0,1793.6,0.89726439]
[1745583640152,0.13770155,1793.9,1793.6,0.89726439]
[1745583640477,0.13770155,1793.9,1793.5,5.57549371]
[1745583640684,0.13770155,1793.9,1793.5,1.2048609]
[1745583640881,0.13770155,1793.9,1793.5,6.78043243]
[1745583641776,0.13770155,1793.9,1793.5,1.2048609]
[1745583642072,0.13770155,1793.9,1793.4,0.89726439]
[1745583642277,0.13770155,1793.9,1793.4,6.05026439]
[1745583642486,0.8537,1793.8,1793.2,6.47367896]
[1745583642691,0.8537,1793.8,1793.2,0.89726439]
[1745583642976,0.8537,1793.5,1793.2,0.89726439]
[1745583643279,0.13647808,1793.4,1793.2,6.4736003]
[1745583643473,0.13647808,1793.4,1793.2,7.63626033]
[1745583643676,0.13647808,1793.4,1793.2,2.05992442]
[1745583644056,0.13647808,1793.4,1793.2,7.63643307]
[1745583644261,0.13647808,1793.4,1793.2,2.05992442]
[1745583644464,0.13647808,1793.4,1793.2,0.89726439]
[1745583646745,0.13647808,1793.4,1793.2,6.47384878]
[1745583647050,0.13647808,1793.4,1793.2,0.89726439]
[1745583647585,0.13647808,1793.4,1793.2,6.47378079]
[1745583647778,0.13647808,1793.4,1793.3,5.57631182]
[1745583647942,0.8537,1793.8,1793.3,6.78132108]
[1745583648142,0.13849623,1793.7,1793.4,6.47304952]
[1745583649453,0.13849623,1793.7,1793.4,0.89726439]
[1745583649684,0.13849623,1793.7,1793.4,6.47325983]
[1745583649985,0.13849623,1793.7,1793.3,5.57612168]
[1745583650284,0.13849623,1793.7,1793.3,6.90462479]
[1745583650785,0.13849623,1793.7,1793.4,0.51510109]
[1745583651360,0.13849623,1793.7,1793.2,5.153]
[1745583651559,0.8537,1793.6,1793.1,10.72982425]
[1745583651749,0.13691244,1793.5,1793.2,0.51505305]
[1745583651950,0.8537,1793.6,1793.2,0.51505305]
[1745583652188,0.13691244,1793.5,1793.2,0.51505305]
[1745583652484,0.8537,1793.6,1793.2,6.7009436]
[1745583652886,0.13691244,1793.5,1793.3,5.5761411]
[1745583653069,0.13691244,1793.5,1793.4,5.57600089]
[1745583653247,4.36301619,1793.9,1793.3,0.89726439]
[1745583653248,0.8537,1793.8,1793.3,0.89726439]
[1745583653447,0.13691244,1793.5,1793.4,6.82833713]
[1745583653649,0.8537,1794.0,1793.5,5.57554543]
[1745583654064,0.13862115,1793.9,1793.4,8.15851056]
[1745583654262,0.13862115,1793.9,1793.4,8.15867308]
[1745583654499,0.13862115,1793.9,1793.4,1.33017343]
[1745583654707,0.13862115,1793.9,1793.4,5.57599711]
[1745583654913,0.13862115,1793.9,1793.4,5.57584294]
[1745583655068,0.13862115,1793.9,1793.4,11.15162314]
[1745583655396,0.13862115,1793.9,1793.6,5.57533698]
[1745583656300,0.13862115,1793.9,1793.5,10.72851662]
[1745583656508,0.13862115,1793.9,1793.5,16.3040539]
[1745583656665,0.13862115,1793.9,1793.5,10.72851662]
[1745583657080,1.75096439,1793.8,1793.5,5.153]
[1745583657269,0.8537,1793.8,1793.5,5.153]
[1745583657612,0.13791448,1793.7,1793.6,5.57525383]
[1745583657778,4.80371404,1794.0,1793.6,5.57525383]
[1745583657979,0.13813823,1793.9,1793.6,5.57525383]
[1745583658309,0.13813823,1793.9,1793.6,5.5753172]
[1745583659267,4.80371404,1794.0,1793.6,5.5753172]
[1745583660119,4.80371404,1794.0,1793.5,11.24378098]
[1745583660281,4.80371404,1794.0,1793.6,5.57536275]
[1745583661207,5.32695478,1794.0,1793.5,11.24378098]
[1745583661420,5.32695478,1794.0,1793.5,16.81924641]
[1745583661602,5.32695478,1794.0,1793.6,6.09029611]
[1745583661976,5.32695478,1794.0,1793.6,5.57526453]
[1745583662412,1.38004074,1794.0,1793.6,5.57526453]
[1745583662706,0.8568,1794.0,1793.6,5.57526453]
[1745583663224,0.8568,1794.0,1793.7,5.57500037]
[1745583663514,0.13818327,1793.9,1793.6,6.86396453]
[1745583663811,0.8568,1794.0,1793.6,6.86396453]
[1745583664109,0.13903909,1793.9,1793.8,5.57473907]
[1745583664273,0.13903909,1793.9,1793.8,6.1322314]
[1745583664473,0.13903909,1793.9,1793.8,7.02949579]
[1745583664714,0.8568,1794.3,1794.1,5.57370227]
[1745583664917,0.8568,1794.3,1794.0,10.72704734]
[1745583665171,0.8568,1794.6,1794.0,11.95087405]
[1745583665316,3.8568,1794.6,1794.0,11.95087405]
[1745583665516,1.42579371,1794.5,1794.0,10.72697405]
[1745583665720,1.42579371,1794.5,1794.0,5.153]
[1745583665916,0.8568,1794.4,1794.0,5.153]
[1745583666079,1.00049991,1794.4,1794.0,5.153]
[1745583666579,1.00049991,1794.4,1794.1,5.5737787]
[1745583666816,1.00049991,1794.4,1794.0,10.72713529]
[1745583667217,1.00049991,1794.4,1794.1,5.57380315]
[1745583667430,1.00049991,1794.4,1794.2,0.55738031]
[1745583667580,1.00049991,1794.4,1794.0,5.153]
[1745583667581,1.00049991,1794.4,1794.0,10.72697565]
[1745583668130,1.00049991,1794.4,1794.0,16.30091588]
[1745583668310,1.00049991,1794.4,1794.1,5.57382395]
[1745583668821,1.00049991,1794.4,1794.0,10.72694023]
[1745583669186,1.00049991,1794.4,1794.0,16.30091064]
[1745583669409,1.00049991,1794.4,1794.1,7.20388149]
[1745583669618,0.14369991,1794.4,1794.2,5.57334865]
[1745583669919,5.16811839,1794.6,1794.2,5.57334865]
[1745583670123,5.16811839,1794.6,1794.2,5.57324217]
[1745583670124,0.14415693,1794.3,1794.2,5.57324217]
[1745583670417,0.8568,1794.6,1794.3,5.5729836]
[1745583670718,0.14469538,1794.5,1794.4,6.12993886]
[1745583670922,0.8568,1794.8,1794.5,5.57229483]
[1745583671094,0.8568,1794.8,1794.5,11.14468258]
[1745583671296,0.8568,1794.8,1794.6,5.57225161]
[1745583671604,1.26893108,1795.0,1794.6,5.57206708]
[1745583671795,0.8568,1795.0,1794.5,5.57236634]
[1745583671993,0.8568,1795.0,1794.5,7.25780913]
[1745583672218,0.8568,1795.0,1794.5,1.68544279]
[1745583672528,0.8568,1795.0,1794.6,5.57212266]
[1745583672822,0.8568,1795.0,1794.7,5.57185202]
[1745583673779,0.8568,1795.0,1794.6,5.57209033]
[1745583674416,0.8568,1795.0,1794.6,11.14413821]
[1745583674619,0.8568,1795.0,1794.7,5.5719564]
[1745583674806,0.8568,1795.0,1794.7,1.11440043]
[1745583677233,0.89726439,1794.9,1794.4,5.70929836]
[1745583677435,0.89726439,1794.9,1794.5,5.57236101]
[1745583677937,0.89726439,1794.9,1794.4,11.28201003]
[1745583678141,0.89726439,1794.7,1794.4,5.152]
[1745583678447,0.8568,1794.4,1794.2,5.15]
[1745583678598,0.89726439,1794.3,1794.1,5.15]
[1745583679003,0.13087449,1794.2,1794.1,5.15]
[1745583682305,0.13087449,1794.2,1793.6,1.2114]
[1745583682509,0.89726439,1794.0,1793.7,5.151]
[1745583682735,0.89726439,1794.0,1793.7,5.78724]
[1745583682944,0.12902087,1793.9,1793.7,5.78724]
[1745583684041,0.8568,1794.1,1793.7,11.36217815]
[1745583684538,0.8568,1794.1,1793.7,11.36230708]
[1745583684735,0.8568,1794.1,1793.7,5.78724]
[1745583685043,0.13059003,1794.0,1793.7,11.36226923]
[1745583685429,0.8568,1794.1,1793.7,11.36226923]
[1745583686040,0.8568,1794.1,1793.7,5.151]
[1745583686441,0.13059003,1794.0,1793.7,10.72604514]
[1745583686652,0.8568,1794.1,1793.7,10.72604514]
[1745583687451,0.8568,1794.1,1793.7,5.151]
[1745583687698,0.13059003,1794.0,1793.7,5.151]
[1745583688055,0.89726439,1794.0,1793.7,5.151]
[1745583688351,0.13032063,1793.9,1793.7,5.151]
[1745583688705,0.89726439,1794.0,1793.7,5.151]
[1745583689102,1.37267083,1794.0,1793.7,5.151]
[1745583689305,0.13032063,1793.9,1793.7,5.151]
[1745583689538,0.89726439,1794.0,1793.7,5.151]
[1745583689949,0.13032063,1793.9,1793.7,5.151]
[1745583694144,0.13032063,1793.9,1793.7,10.72606744]
[1745583694851,0.13032063,1793.9,1793.7,5.151]
[1745583695056,0.13032063,1793.9,1793.7,10.72604547]
[1745583695349,0.13032063,1793.9,1793.7,12.35616549]
[1745583695514,0.13032063,1793.9,1793.7,12.3559945]
[1745583696251,0.13032063,1793.9,1793.8,6.87815749]
[1745583697739,0.8593,1794.5,1793.8,1.3034]
[1745583697947,0.8593,1794.5,1794.0,11.1477889]
[1745583698134,0.8593,1794.5,1794.1,10.72580383]
[1745583698333,0.11684411,1794.4,1794.1,10.72580383]
[1745583699011,0.11684411,1794.4,1794.1,5.152]
[1745583700357,0.11684411,1794.4,1794.2,5.57347019]
[1745583700531,0.11684411,1794.4,1794.2,6.76717019]
[1745583700731,0.89726439,1794.6,1794.3,0.67671702]
[1745583700946,0.10471937,1794.3,1794.1,10.72566927]
[1745583701157,0.89726439,1794.6,1794.1,10.72566927]
[1745583701357,0.10445007,1794.2,1794.1,10.72566927]
[1745583701568,0.89726439,1794.6,1794.2,5.57335811]
[1745583701859,0.89726439,1794.6,1794.1,10.72561249]
[1745583702153,0.89726439,1794.6,1794.2,1.07256125]
[1745583702325,0.89726439,1794.6,1794.2,6.64604814]
[1745583702763,0.89726439,1794.6,1794.2,1.07256125]
[1745583703169,0.89726439,1794.6,1794.1,5.152]
[1745583703566,1.31146943,1794.6,1794.1,5.152]
[1745583704085,1.31146943,1794.6,1794.1,10.72571895]
[1745583704676,1.31146943,1794.6,1794.1,10.72566829]
[1745583705089,1.31146943,1794.6,1794.1,16.29939456]
[1745583705384,1.31146943,1794.6,1794.1,10.72564909]
[1745583705957,1.31146943,1794.6,1794.1,10.72562357]
[1745583709084,0.89726439,1794.4,1794.1,5.149]
[1745583710079,0.89726439,1794.2,1793.9,5.149]
[1745583711289,0.89726439,1794.0,1793.8,5.149]
[1745583712001,0.77726439,1794.0,1793.8,5.149]
[1745583712903,0.8593,1793.9,1793.8,5.149]
[1745583713274,3.0,1794.1,1793.8,5.149]
[1745583713474,3.89726439,1794.1,1793.8,5.149]
[1745583713922,3.89726439,1794.1,1793.5,5.57555663]
[1745583713923,0.89726439,1793.9,1793.5,5.15]
[1745583717349,0.89726439,1793.7,1793.3,5.15]
[1745583717492,0.89726439,1793.5,1793.3,5.15]
[1745583718728,0.8593,1793.8,1793.3,5.15]
[1745583718729,0.89726439,1793.7,1793.3,5.15]
[1745583718903,0.89726439,1793.7,1793.3,6.22265183]
[1745583719523,0.8593,1793.8,1793.5,5.57559811]
[1745583719691,0.8593,1793.8,1793.4,6.85467206]
[1745583719896,0.8593,1793.8,1793.4,6.85459327]
[1745583720988,0.8549,1794.0,1793.6,5.57514011]
[1745583721194,1.32374324,1794.1,1793.7,0.55751401]
[1745583721394,0.89726439,1794.1,1793.7,0.55751401]
[1745583722231,0.89726439,1794.1,1793.6,5.57524785]
[1745583722405,0.89726439,1794.1,1793.7,5.15]
[1745583723432,1.3229778,1794.1,1793.7,5.15]
[1745583724034,4.75216439,1794.4,1793.8,6.85337319]
[1745583724202,4.75216439,1794.4,1793.9,5.57431606]
[1745583724528,4.75216439,1794.4,1794.0,0.55743161]
[1745583724733,4.75216439,1794.4,1793.9,5.57419446]
[1745583724941,1.75216439,1794.4,1793.9,5.57419446]
[1745583725501,0.8549,1794.4,1794.0,5.57412742]
[1745583725928,0.89726439,1794.5,1794.1,5.57371408]
[1745583726248,0.89726439,1794.5,1793.9,5.57426175]
[1745583726402,0.89726439,1794.5,1794.1,5.15]
[1745583727000,0.89726439,1794.3,1794.1,5.15]
[1745583727434,0.8549,1794.2,1794.1,5.15]
[1745583727743,0.8549,1794.1,1793.5,5.15]
[1745583727892,0.89726439,1793.7,1793.5,5.15]
[1745583728096,0.89726439,1793.7,1793.5,5.78824]
[1745583728512,0.8549,1793.8,1793.5,5.78824]
[1745583729294,5.69907843,1794.0,1793.5,11.36380351]
[1745583729494,5.69907843,1794.0,1793.5,11.36392648]
[1745583729934,5.69907843,1794.0,1793.5,5.78824]
[1745583730102,5.69907843,1794.0,1793.6,0.578824]
[1745583732109,5.69907843,1794.0,1793.5,5.78824]
[1745583732335,5.49907843,1794.0,1793.5,11.36392072]
[1745583732846,1.75216439,1794.0,1793.5,11.36392072]
[1745583733549,1.75216439,1794.0,1793.5,5.78824]
[1745583734453,0.89726439,1793.9,1793.5,5.15]
[1745583734952,0.8549,1794.0,1793.5,10.72553906]
[1745583735151,0.8549,1794.0,1793.6,5.57524926]
[1745583735312,1.31430972,1794.1,1793.7,1.2499]
[1745583736155,1.31430972,1794.1,1793.5,11.97546686]
[1745583736453,1.31430972,1794.1,1793.6,1.19754669]
[1745583736658,1.31430972,1794.1,1793.5,6.3999]
[1745583736814,0.89726439,1793.9,1793.5,6.3999]
[1745583737346,0.89726439,1793.9,1793.5,11.97540295]
[1745583737721,0.89726439,1793.9,1793.5,6.3999]
[1745583737916,0.8549,1793.8,1793.5,5.15]
[1745583738122,0.89726439,1793.7,1793.2,5.147]
[1745583738318,3.89726439,1793.7,1793.2,5.147]
[1745583738523,0.38972644,1793.6,1793.2,5.147]
[1745583739064,1.75216439,1793.5,1793.2,5.147]
[1745583739551,2.16346239,1793.5,1793.2,5.147]
[1745583740506,0.89726439,1793.3,1792.9,21.871]
[1745583741372,4.15821204,1793.5,1793.0,1.232]
[1745583741707,3.74691404,1793.5,1793.1,5.57672153]
[1745583742381,3.74691404,1793.5,1793.1,11.15345809]
[1745583742562,3.74691404,1793.5,1793.1,5.57672153]
[1745583742963,3.74691404,1793.5,1793.0,6.80913395]
[1745583743165,3.74691404,1793.5,1793.1,0.68091339]
[1745583743480,0.89726439,1793.4,1793.0,1.232]
[1745583743682,4.75216439,1793.4,1793.0,1.232]
[1745583745499,4.75216439,1793.4,1792.9,24.0581]
[1745583745797,4.75216439,1793.4,1792.9,21.871]
[1745583748596,0.89726439,1793.2,1792.9,21.871]
[1745583748803,0.8576,1793.1,1792.9,21.871]
[1745583749549,0.89726439,1793.2,1792.9,21.871]
[1745583750341,0.8576,1793.3,1792.9,21.871]
[1745583750643,0.8576,1793.3,1792.9,24.61586643]
[1745583751660,0.8576,1793.3,1792.9,30.19325096]
[1745583751806,0.8576,1793.3,1793.0,5.57721768]
[1745583752011,0.8576,1793.3,1792.9,31.43015096]
[1745583752244,3.0,1793.4,1792.9,31.43015096]
[1745583752438,3.0,1793.4,1793.0,3.1430151]
[1745583752648,3.0,1793.4,1793.0,8.72002253]
[1745583753414,0.8576,1793.5,1793.2,5.57653079]
[1745583753656,3.74691404,1793.7,1793.3,5.57613183]
[1745583753866,0.89726439,1793.8,1793.3,5.57613183]
[1745583753867,0.89726439,1793.8,1793.3,5.149]
[1745583754648,0.89726439,1793.8,1793.3,6.22154567]
[1745583755047,0.89726439,1793.8,1793.3,11.79769421]
[1745583755248,0.89726439,1793.8,1793.4,5.57597758]
[1745583755473,0.89726439,1793.8,1793.5,1.252]
[1745583756543,1.27965039,1793.9,1793.5,1.252]
[1745583756886,1.27965039,1793.9,1793.5,1.93477891]